[Event "EYCC Open-U18 2019"]
[Site "Bratislava"]
[Date "2019.08.02"]
[Round "1.31"]
[White "Maksimovic, Bojan"]
[Black "Pektas, Yigit"]
[Result "1-0"]
[ECO "B19"]
[WhiteElo "2326"]
[BlackElo "2111"]
[Annotator "NA"]
[PlyCount "95"]
[EventDate "2019.08.02"]
[EventType "swiss"]
[EventCountry "SVK"]
[SourceTitle "playchess.com"]
[Source "ChessBase"]
[SourceQuality "1"]
[TimeControl "40/5400+30:1800+30"]

1. e4 {[%emt 0:00:00]} c6 {[%emt 0:00:00]} 2. d4 {[%emt 0:00:00]} d5 {[%emt 0:00:00]} 3. Nc3 {[%emt 0:00:00]} dxe4 {[%emt 0:00:00]} 4. Nxe4 {[%emt 0:00:07]} Bf5 {[%emt 0:00:00]} 5. Ng3 {[%emt 0:00:17]} Bg6 {[%emt 0:00:00]} 6. Nf3 {[%emt 0:00:31]} Nd7 {[%emt 0:00:24]} 7. h4 {[%emt 0:00:34]} h6 {[%emt 0:00:04]} 8. h5 {[%emt 0:00:08]} Bh7 {[%emt 0:00:03]} 9. Bd3 {[%emt 0:00:11]} Bxd3 {[%emt 0:00:04]} 10. Qxd3 {[%emt 0:00:08]} e6 {[%emt 0:00:04]} 11. Bd2 {[%emt 0:00:20]} Ngf6 {[%emt 0:00:11]} 12. O-O-O {[%emt 0:00:34]} Be7 {[%emt 0:00:06]} 13. Kb1 {[%emt 0:01:17]} O-O {[%emt 0:00:10]} 14. Ne4 {[%emt 0:03:22]} Nxe4 {[%emt 0:00:07]} 15. Qxe4 {[%emt 0:00:07]} Nf6 {[%emt 0:00:03]} 16. Qe2 {[%emt 0:00:11]} Qd5 {[%emt 0:00:03]} 17. Be3 {[%emt 0:03:39]} b5 {[%emt 0:00:16]} 18. Ne5 {[%emt 0:02:49]} Bd6 {[%emt 0:00:18]} 19. Ng4 {[%emt 0:14:27]} Nxg4 {[%emt 0:17:37]} 20. Qxg4 {[%emt 0:00:09]} f5 {[%emt 0:05:48]} 21. Qe2 {[%emt 0:05:33]} f4 {[%emt 0:09:19]} 22. Bc1 {[%emt 0:00:18]} Rae8 {[%emt 0:09:40]} 23. Qg4 {[%emt 0:09:12]} Rf5 {[%emt 0:01:58]} 24. g3 {[%emt 0:05:41]} Qg2 {[%emt 0:10:43]} 25. Rhg1 {[%emt 0:10:15]} Qd5 {[%emt 0:00:29]} 26. Qg6 {[%emt 0:14:13]} Re7 {[%emt 0:02:58]} 27. g4 {[%emt 0:01:11]} Rf6 {[%emt 0:03:30]} 28. Qd3 {[%emt 0:00:46]} e5 {[%emt 0:00:49]} 29. dxe5 {[%emt 0:00:53]} Qxe5 {[%emt 0:03:47]} 30. f3 {[%emt 0:04:18]} Bc5 {[%emt 0:02:01]} 31. Rgf1 {[%emt 0:05:38]} Rd6 {[%emt 0:06:52]} 32. Qb3+ {[%emt 0:01:47]} Kh8 {[%emt 0:00:26]} 33. c4 {[%emt 0:06:14]} b4 {[%emt 0:15:39]} 34. Rxd6 {[%emt 0:01:41]} Qxd6 {[%emt 0:01:20]} 35. Rd1 {[%emt 0:00:31]} Bd4 {[%emt 0:00:21]} 36. c5 {[%emt 0:05:28]} Qxc5 {[%emt 0:00:15]} 37. Bxf4 {[%emt 0:01:03]} Re2 {[%emt 0:02:43]} 38. Bc1 {[%emt 0:00:31]} Bf6 {[%emt 0:05:41]} 39. f4 {[%emt 0:03:24]} Qe7 {[%emt 0:01:51]} 40. Qd3 {[%emt 0:00:00]} c5 {[%emt 0:00:00]} 41. g5 {[%emt 0:11:45]} Bd4 {[%emt 0:04:19]} 42. g6 {[%emt 0:04:36]} Kg8 {[%emt 0:05:56]} 43. Qc4+ {[%emt 0:05:21]} Kf8 {[%emt 0:00:35]} 44. f5 {[%emt 0:01:10]} Ke8 {[%emt 0:17:25]} 45. Rxd4 {[%emt 0:10:30]} cxd4 {[%emt 0:00:50]} 46. f6 {[%emt 0:00:17]} Qe4+ {[%emt 0:01:18]} 47. Ka1 {[%emt 0:00:01]} Rc2 {[%emt 0:01:32]} 48. fxg7 {[%emt 0:00:49]} 1-0

[Event "EYCC Open-U18 2019"]
[Site "Bratislava"]
[Date "2019.08.02"]
[Round "1.32"]
[White "Polczyk, Mikolaj"]
[Black "Ludvik, Tomas"]
[Result "1/2-1/2"]
[ECO "D10"]
[WhiteElo "2111"]
[BlackElo "2334"]
[Annotator "NA"]
[PlyCount "89"]
[EventDate "2019.08.02"]
[EventType "swiss"]
[EventCountry "SVK"]
[SourceTitle "playchess.com"]
[Source "ChessBase"]
[SourceQuality "1"]
[TimeControl "40/5400+30:1800+30"]

1. d4 {[%emt 0:00:00]} d5 {[%emt 0:00:00]} 2. c4 {[%emt 0:00:00]} c6 {[%emt 0:00:00]} 3. cxd5 {[%emt 0:00:28]} cxd5 {[%emt 0:00:04]} 4. Nf3 {[%emt 0:00:16]} Nf6 {[%emt 0:00:17]} 5. Nc3 {[%emt 0:00:20]} Nc6 {[%emt 0:00:11]} 6. Bf4 {[%emt 0:00:09]} a6 {[%emt 0:00:41]} 7. Rc1 {[%emt 0:00:09]} Bf5 {[%emt 0:04:03]} 8. e3 {[%emt 0:00:46]} Rc8 {[%emt 0:01:06]} 9. Be2 {[%emt 0:02:21]} e6 {[%emt 0:02:09]} 10. O-O {[%emt 0:06:52]} Bd6 {[%emt 0:05:43]} 11. Bxd6 {[%emt 0:00:49]} Qxd6 {[%emt 0:00:08]} 12. Na4 {[%emt 0:02:04]} O-O {[%emt 0:14:43]} 13. Nc5 {[%emt 0:01:38]} Rc7 {[%emt 0:02:30]} 14. Qb3 {[%emt 0:06:43]} Qe7 {[%emt 0:02:47]} 15. Qb6 {[%emt 0:04:37]} Rfc8 {[%emt 0:03:19]} 16. Rc3 {[%emt 0:07:36]} e5 {[%emt 0:14:34]} 17. dxe5 {[%emt 0:07:41]} Nxe5 {[%emt 0:00:20]} 18. Nxe5 {[%emt 0:21:07]} Rxc5 {[%emt 0:01:05]} 19. Rxc5 {[%emt 0:01:01]} Rxc5 {[%emt 0:00:24]} 20. Nf3 {[%emt 0:00:53]} Rc6 {[%emt 0:08:22]} 21. Qa7 {[%emt 0:06:24]} Rc7 {[%emt 0:09:59]} 22. Nd4 {[%emt 0:01:28]} Be6 {[%emt 0:01:59]} 23. Bd3 {[%emt 0:05:09]} g6 {[%emt 0:02:01]} 24. Ne2 {[%emt 0:03:11]} Qb4 {[%emt 0:04:53]} 25. Qd4 {[%emt 0:01:11]} Qxd4 {[%emt 0:00:38]} 26. Nxd4 {[%emt 0:00:13]} Kf8 {[%emt 0:01:31]} 27. Rd1 {[%emt 0:00:43]} Ke7 {[%emt 0:00:28]} 28. Kf1 {[%emt 0:00:31]} Nd7 {[%emt 0:02:24]} 29. h3 {[%emt 0:03:24]} Ne5 {[%emt 0:01:32]} 30. Ke2 {[%emt 0:00:12]} f6 {[%emt 0:01:45]} 31. b3 {[%emt 0:05:50]} Bf7 {[%emt 0:01:37]} 32. Bb1 {[%emt 0:02:21]} a5 {[%emt 0:03:46]} 33. Kd2 {[%emt 0:01:14]} Rc5 {[%emt 0:02:29]} 34. Rc1 {[%emt 0:03:09]} Kd6 {[%emt 0:01:35]} 35. a4 {[%emt 0:03:41]} Rxc1 {[%emt 0:01:27]} 36. Kxc1 {[%emt 0:00:05]} Kc5 {[%emt 0:00:51]} 37. Kb2 {[%emt 0:00:47]} Nc6 {[%emt 0:03:47]} 38. Kc3 {[%emt 0:00:44]} Nxd4 {[%emt 0:01:11]} 39. exd4+ {[%emt 0:00:11]} Kd6 {[%emt 0:00:08]} 40. b4 {[%emt 0:00:00]} b6 {[%emt 0:00:00]} 41. b5 {[%emt 0:04:05]} h6 {[%emt 0:02:32]} 42. Kd2 {[%emt 0:02:01]} g5 {[%emt 0:01:23]} 43. Ke3 {[%emt 0:03:55]} Bh5 {[%emt 0:00:32]} 44. f3 {[%emt 0:01:33]} Ke6 {[%emt 0:01:00]} 45. g4 {[%emt 0:00:39] Ke5 Ke4+} 1/2-1/2

[Event "EYCC Open-U18 2019"]
[Site "Bratislava"]
[Date "2019.08.02"]
[Round "1.33"]
[White "Storme, Isak"]
[Black "Horak, Jan"]
[Result "1/2-1/2"]
[ECO "A65"]
[WhiteElo "2330"]
[BlackElo "2020"]
[Annotator "NA"]
[PlyCount "91"]
[EventDate "2019.08.02"]
[EventType "swiss"]
[EventCountry "SVK"]
[SourceTitle "playchess.com"]
[Source "ChessBase"]
[SourceQuality "1"]
[TimeControl "40/5400+30:1800+30"]

1. d4 {[%emt 0:00:00]} Nf6 {[%emt 0:00:00]} 2. c4 {[%emt 0:00:00]} c5 {[%emt 0:00:00]} 3. d5 {[%emt 0:00:00]} e6 {[%emt 0:00:09]} 4. Nc3 {[%emt 0:00:00]} exd5 {[%emt 0:00:19]} 5. cxd5 {[%emt 0:00:00]} d6 {[%emt 0:00:12]} 6. e4 {[%emt 0:00:00]} g6 {[%emt 0:00:15]} 7. Nge2 {[%emt 0:00:04]} Bg7 {[%emt 0:00:24]} 8. Ng3 {[%emt 0:00:06]} O-O {[%emt 0:00:47]} 9. Be2 {[%emt 0:00:07]} a6 {[%emt 0:02:26]} 10. a4 {[%emt 0:00:04]} b6 {[%emt 0:06:47]} 11. O-O {[%emt 0:00:10]} Re8 {[%emt 0:00:53]} 12. Bg5 {[%emt 0:01:29]} Qc7 {[%emt 0:02:57]} 13. Qd2 {[%emt 0:01:47]} Nbd7 {[%emt 0:01:31]} 14. Bh6 {[%emt 0:02:35]} Bh8 {[%emt 0:13:47]} 15. f4 {[%emt 0:00:07]} c4 {[%emt 0:02:49]} 16. Bf3 {[%emt 0:02:06]} Rb8 {[%emt 0:03:36]} 17. Kh1 {[%emt 0:06:50]} Nc5 {[%emt 0:07:40]} 18. Rad1 {[%emt 0:02:56]} Ng4 {[%emt 0:10:37]} 19. Bg5 {[%emt 0:02:00]} b5 {[%emt 0:11:06]} 20. axb5 {[%emt 0:01:00]} axb5 {[%emt 0:00:05]} 21. e5 {[%emt 0:03:04]} Nb3 {[%emt 0:12:04]} 22. Qe2 {[%emt 0:01:22]} Nf6 {[%emt 0:01:10]} 23. Bxf6 {[%emt 0:00:51]} Bxf6 {[%emt 0:00:30]} 24. Nce4 {[%emt 0:00:08]} Bg7 {[%emt 0:02:29]} 25. Nxd6 {[%emt 0:01:57]} Qxd6 {[%emt 0:03:22]} 26. exd6 {[%emt 0:00:05]} Rxe2 {[%emt 0:00:11]} 27. Bxe2 {[%emt 0:02:00]} Bxb2 {[%emt 0:00:28]} 28. Rde1 {[%emt 0:07:05]} Bd7 {[%emt 0:03:05]} 29. Bd1 {[%emt 0:02:21]} Nd4 {[%emt 0:07:37]} 30. Rf2 {[%emt 0:03:16]} c3 {[%emt 0:01:27]} 31. Ne4 {[%emt 0:02:40]} Kg7 {[%emt 0:04:53]} 32. Nc5 {[%emt 0:04:52]} Rd8 {[%emt 0:00:23]} 33. Nd3 {[%emt 0:08:26]} Ba3 {[%emt 0:00:17]} 34. Re4 {[%emt 0:03:16]} Nf5 {[%emt 0:01:02]} 35. Bb3 {[%emt 0:01:30]} Nxd6 {[%emt 0:00:29]} 36. Re1 {[%emt 0:00:57]} Bf5 {[%emt 0:00:38]} 37. Ne5 {[%emt 0:00:00]} Ne4 {[%emt 0:01:11]} 38. Ra2 {[%emt 0:01:37]} Bc5 {[%emt 0:00:31]} 39. Nd3 {[%emt 0:03:53]} Bd4 {[%emt 0:00:23]} 40. Rae2 {[%emt 0:00:00]} Nd2 {[%emt 0:00:00]} 41. Bc2 {[%emt 0:06:03]} Bxd3 {[%emt 0:10:32]} 42. Bxd3 {[%emt 0:00:11]} Rxd5 {[%emt 0:00:26]} 43. Bc2 {[%emt 0:02:49]} b4 {[%emt 0:01:08]} 44. Rd1 {[%emt 0:01:30]} b3 {[%emt 0:01:26]} 45. Rexd2 {[%emt 0:00:07]} cxd2 {[%emt 0:00:38]} 46. Bxb3 {[%emt 0:00:06]} 1/2-1/2

[Event "EYCC Open-U18 2019"]
[Site "Bratislava"]
[Date "2019.08.02"]
[Round "1.34"]
[White "Varga, Lukas"]
[Black "Guerra Rivera, Salvador"]
[Result "0-1"]
[ECO "C41"]
[WhiteElo "2046"]
[BlackElo "2355"]
[Annotator "NA"]
[PlyCount "56"]
[EventDate "2019.08.02"]
[EventType "swiss"]
[EventCountry "SVK"]
[SourceTitle "playchess.com"]
[Source "ChessBase"]
[SourceQuality "1"]
[TimeControl "40/5400+30:1800+30"]

1. e4 {[%emt 0:00:00]} e5 {[%emt 0:00:00]} 2. Nf3 {[%emt 0:00:00]} d6 {[%emt 0:00:12]} 3. d4 {[%emt 0:00:00]} exd4 {[%emt 0:00:12]} 4. Nxd4 {[%emt 0:00:11]} Nf6 {[%emt 0:00:24]} 5. Nc3 {[%emt 0:00:11]} Be7 {[%emt 0:00:16]} 6. Bf4 {[%emt 0:03:41]} O-O {[%emt 0:00:36]} 7. Qf3 {[%emt 0:05:13]} Re8 {[%emt 0:06:19]} 8. h3 {[%emt 0:05:56]} Bf8 {[%emt 0:21:45]} 9. O-O-O {[%emt 0:01:25]} Nbd7 {[%emt 0:00:24]} 10. g4 {[%emt 0:12:15]} Ne5 {[%emt 0:05:50]} 11. Qg2 {[%emt 0:03:05]} Bd7 {[%emt 0:07:06]} 12. Bg5 {[%emt 0:07:05]} h6 {[%emt 0:16:50]} 13. Bh4 {[%emt 0:07:07]} Ng6 {[%emt 0:00:38]} 14. Bg3 {[%emt 0:00:09]} c6 {[%emt 0:04:53]} 15. Nf5 {[%emt 0:10:46]} d5 {[%emt 0:03:22]} 16. exd5 {[%emt 0:00:42]} Qa5 {[%emt 0:00:11]} 17. Bc4 {[%emt 0:04:32]} Rac8 {[%emt 0:03:57]} 18. Ne3 {[%emt 0:04:39]} Bb4 {[%emt 0:09:30]} 19. dxc6 {[%emt 0:02:54]} Bxc6 {[%emt 0:02:22]} 20. Ncd5 {[%emt 0:00:08]} Ne4 {[%emt 0:03:18]} 21. Rd4 {[%emt 0:06:23]} Nd2 {[%emt 0:06:23]} 22. f3 {[%emt 0:05:37]} Nxc4 {[%emt 0:00:25]} 23. Nxc4 {[%emt 0:00:39]} Qc5 {[%emt 0:00:36]} 24. Nxb4 {[%emt 0:06:52]} Qxd4 {[%emt 0:00:22]} 25. Nxc6 {[%emt 0:01:56]} Qxc4 {[%emt 0:00:33]} 26. Na5 {[%emt 0:01:18]} Qxa2 {[%emt 0:00:13]} 27. Nxb7 {[%emt 0:01:27]} Qa1+ {[%emt 0:00:07]} 28. Kd2 {[%emt 0:00:11]} Qxb2 {[%emt 0:00:04]} 0-1

[Event "EYCC Open-U18 2019"]
[Site "Bratislava"]
[Date "2019.08.02"]
[Round "1.35"]
[White "Garayev, Kanan"]
[Black "Joensson, Jacob"]
[Result "1-0"]
[ECO "E06"]
[WhiteElo "2351"]
[BlackElo "1981"]
[Annotator "NA"]
[PlyCount "104"]
[EventDate "2019.08.02"]
[EventType "swiss"]
[EventCountry "SVK"]
[SourceTitle "playchess.com"]
[Source "ChessBase"]
[SourceQuality "1"]
[TimeControl "40/5400+30:1800+30"]

1. d4 {[%emt 0:00:00]} Nf6 {[%emt 0:00:00]} 2. c4 {[%emt 0:00:00]} e6 {[%emt 0:00:00]} 3. Nf3 {[%emt 0:00:00]} d5 {[%emt 0:00:00]} 4. g3 {[%emt 0:00:00]} Be7 {[%emt 0:00:05]} 5. Bg2 {[%emt 0:00:01]} O-O {[%emt 0:00:09]} 6. O-O {[%emt 0:00:14]} c6 {[%emt 0:00:18]} 7. Nc3 {[%emt 0:01:01]} Nbd7 {[%emt 0:01:20]} 8. Nd2 {[%emt 0:00:07]} b6 {[%emt 0:03:14]} 9. e4 {[%emt 0:06:50]} Bb7 {[%emt 0:15:12]} 10. e5 {[%emt 0:08:14]} Ne8 {[%emt 0:00:20]} 11. cxd5 {[%emt 0:05:06]} cxd5 {[%emt 0:07:31]} 12. a4 {[%emt 0:08:17]} Nc7 {[%emt 0:14:47]} 13. f4 {[%emt 0:01:32]} Ba6 {[%emt 0:07:45]} 14. Rf2 {[%emt 0:02:58]} b5 {[%emt 0:05:59]} 15. axb5 {[%emt 0:05:27]} Bxb5 {[%emt 0:00:09]} 16. f5 {[%emt 0:00:39]} exf5 {[%emt 0:04:15]} 17. Nxd5 {[%emt 0:05:09]} Nxd5 {[%emt 0:02:44]} 18. Bxd5 {[%emt 0:00:02]} Rb8 {[%emt 0:00:23]} 19. Nf1 {[%emt 0:03:57]} Nb6 {[%emt 0:10:48]} 20. Bb3 {[%emt 0:03:47]} Bc4 {[%emt 0:03:57]} 21. Bc2 {[%emt 0:07:34]} f6 {[%emt 0:03:15]} 22. Ne3 {[%emt 0:05:31]} fxe5 {[%emt 0:04:00]} 23. Bxf5 {[%emt 0:07:44]} Kh8 {[%emt 0:04:10]} 24. Rxa7 {[%emt 0:10:17]} Bg5 {[%emt 0:03:08]} 25. Qg4 {[%emt 0:03:04]} Ra8 {[%emt 0:05:44]} 26. Nxc4 {[%emt 0:02:07]} Rxa7 {[%emt 0:00:39]} 27. Bxg5 {[%emt 0:00:28]} Ra1+ {[%emt 0:00:30]} 28. Kg2 {[%emt 0:01:10]} Qd5+ {[%emt 0:00:32]} 29. Kh3 {[%emt 0:00:01]} Qxc4 {[%emt 0:00:39]} 30. Be7 {[%emt 0:03:29]} Rfa8 {[%emt 0:01:35]} 31. Qh5 {[%emt 0:02:38]} Qg8 {[%emt 0:00:35]} 32. dxe5 {[%emt 0:01:02]} Nd5 {[%emt 0:00:37]} 33. Qh4 {[%emt 0:03:37]} Nxe7 {[%emt 0:01:03]} 34. Qxe7 {[%emt 0:00:00]} Qe8 {[%emt 0:00:18]} 35. Qxe8+ {[%emt 0:00:47]} Rxe8 {[%emt 0:00:15]} 36. Bd7 {[%emt 0:00:01]} Rb8 {[%emt 0:01:09]} 37. Re2 {[%emt 0:00:41]} Ra7 {[%emt 0:00:41]} 38. e6 {[%emt 0:00:14]} Kg8 {[%emt 0:00:12]} 39. b4 {[%emt 0:02:06]} Rd8 {[%emt 0:00:22]} 40. b5 {[%emt 0:00:00]} Rdxd7 {[%emt 0:00:00]} 41. exd7 {[%emt 0:03:05]} Rxd7 {[%emt 0:00:35]} 42. b6 {[%emt 0:00:29]} Rb7 {[%emt 0:00:16]} 43. Rb2 {[%emt 0:00:39]} Kf7 {[%emt 0:00:21]} 44. Kg4 {[%emt 0:00:23]} Ke6 {[%emt 0:01:35]} 45. Rb5 {[%emt 0:02:18]} Kf6 {[%emt 0:01:45]} 46. Kf4 {[%emt 0:00:22]} Ke6 {[%emt 0:00:50]} 47. Ke4 {[%emt 0:00:15]} Kd6 {[%emt 0:00:43]} 48. Kd4 {[%emt 0:00:39]} Kc6 {[%emt 0:00:17]} 49. Kc4 {[%emt 0:00:12]} g6 {[%emt 0:03:13]} 50. Rc5+ {[%emt 0:01:27]} Kd6 {[%emt 0:02:31]} 51. Kb5 {[%emt 0:00:18]} Rb8 {[%emt 0:00:53]} 52. Rc7 {[%emt 0:00:21]} Kd5 1-0

[Event "EYCC Open-U18 2019"]
[Site "Bratislava"]
[Date "2019.08.02"]
[Round "1.36"]
[White "Rodriguez Izquierdo, Luis"]
[Black "Tisaj, Domen"]
[Result "1-0"]
[ECO "B32"]
[WhiteElo "2007"]
[BlackElo "2232"]
[Annotator "NA"]
[PlyCount "59"]
[EventDate "2019.08.02"]
[EventType "swiss"]
[EventCountry "SVK"]
[SourceTitle "playchess.com"]
[Source "ChessBase"]
[SourceQuality "1"]
[TimeControl "40/5400+30:1800+30"]

1. e4 {[%emt 0:00:00]} c5 {[%emt 0:00:00]} 2. Nf3 {[%emt 0:00:00]} Nc6 {[%emt 0:00:00]} 3. d4 {[%emt 0:00:00]} cxd4 {[%emt 0:00:00]} 4. Nxd4 {[%emt 0:00:00]} e5 {[%emt 0:00:00]} 5. Nb5 {[%emt 0:00:31]} d6 {[%emt 0:00:02]} 6. N1c3 {[%emt 0:01:12]} a6 {[%emt 0:00:06]} 7. Na3 {[%emt 0:00:14]} Be7 {[%emt 0:00:07]} 8. Nc4 {[%emt 0:01:46]} b5 {[%emt 0:00:06]} 9. Ne3 {[%emt 0:00:14]} Nf6 {[%emt 0:00:06]} 10. g3 {[%emt 0:02:06]} O-O {[%emt 0:00:31]} 11. Bg2 {[%emt 0:01:10]} b4 {[%emt 0:07:44]} 12. Ncd5 {[%emt 0:02:07]} Nxd5 {[%emt 0:00:10]} 13. Nxd5 {[%emt 0:00:35]} Bg5 {[%emt 0:00:13]} 14. Bxg5 {[%emt 0:02:01]} Qxg5 {[%emt 0:00:53]} 15. O-O {[%emt 0:00:49]} Rb8 {[%emt 0:02:44]} 16. f4 {[%emt 0:02:19]} Qd8 {[%emt 0:28:12]} 17. f5 {[%emt 0:04:23]} h6 {[%emt 0:13:01]} 18. f6 {[%emt 0:14:07]} g6 {[%emt 0:00:38]} 19. a3 {[%emt 0:03:35]} Kh7 {[%emt 0:04:28]} 20. g4 {[%emt 0:07:38]} Qd7 {[%emt 0:20:41]} 21. Qd2 {[%emt 0:05:51]} b3 {[%emt 0:02:41]} 22. Rf3 {[%emt 0:12:02]} Qa7+ {[%emt 0:05:38]} 23. Kh1 {[%emt 0:03:11]} Qd4 {[%emt 0:02:13]} 24. Qc1 {[%emt 0:06:44]} Bxg4 {[%emt 0:01:26]} 25. c3 {[%emt 0:00:26]} Qa7 {[%emt 0:02:09]} 26. Rg3 {[%emt 0:00:41]} Bh5 {[%emt 0:00:12]} 27. Ne3 {[%emt 0:03:34]} Qd7 {[%emt 0:02:18]} 28. Nf5 {[%emt 0:00:54]} g5 {[%emt 0:00:40]} 29. Rxg5 {[%emt 0:00:08]} Qc8 30. Rg3 1-0

[Event "EYCC Open-U18 2019"]
[Site "Bratislava"]
[Date "2019.08.02"]
[Round "1.37"]
[White "Leisch, Lukas"]
[Black "Gray, Euan"]
[Result "1-0"]
[ECO "A28"]
[WhiteElo "2327"]
[BlackElo "2004"]
[Annotator "NA"]
[PlyCount "91"]
[EventDate "2019.08.02"]
[EventType "swiss"]
[EventCountry "SVK"]
[SourceTitle "playchess.com"]
[Source "ChessBase"]
[SourceQuality "1"]
[TimeControl "40/5400+30:1800+30"]

1. c4 {[%emt 0:00:00]} e5 {[%emt 0:00:00]} 2. Nc3 {[%emt 0:00:00]} Nf6 {[%emt 0:00:00]} 3. Nf3 {[%emt 0:00:00]} Nc6 {[%emt 0:00:05]} 4. e3 {[%emt 0:00:00]} Bb4 {[%emt 0:05:23]} 5. Qc2 {[%emt 0:00:01]} a5 {[%emt 0:01:35]} 6. Nd5 {[%emt 0:00:52]} Bc5 {[%emt 0:00:49]} 7. a3 {[%emt 0:00:28]} d6 {[%emt 0:01:48]} 8. b3 {[%emt 0:03:08]} Be6 {[%emt 0:05:46]} 9. Nxf6+ {[%emt 0:03:07]} Qxf6 {[%emt 0:00:07]} 10. Bb2 {[%emt 0:00:47]} O-O {[%emt 0:19:12]} 11. Bd3 {[%emt 0:00:45]} h6 {[%emt 0:00:40]} 12. Be4 {[%emt 0:02:08]} Bd7 {[%emt 0:05:28]} 13. O-O {[%emt 0:02:05]} Bb6 {[%emt 0:06:33]} 14. Rad1 {[%emt 0:03:53]} Bg4 {[%emt 0:05:22]} 15. Qc3 {[%emt 0:14:45]} Qe7 {[%emt 0:03:14]} 16. Rde1 {[%emt 0:08:40]} f5 {[%emt 0:13:52]} 17. Bd5+ {[%emt 0:05:45]} Kh7 {[%emt 0:01:48]} 18. c5 {[%emt 0:10:41]} Bxc5 {[%emt 0:06:53]} 19. d4 {[%emt 0:01:32]} Bxf3 {[%emt 0:12:05]} 20. Bxf3 {[%emt 0:02:12]} e4 {[%emt 0:00:15]} 21. Bd1 {[%emt 0:08:52]} Bb6 {[%emt 0:00:10]} 22. f4 {[%emt 0:00:40]} d5 {[%emt 0:01:20]} 23. Kh1 {[%emt 0:00:46]} Nd8 {[%emt 0:02:35]} 24. g4 {[%emt 0:03:26]} g6 {[%emt 0:00:20]} 25. Rg1 {[%emt 0:00:45]} Ne6 {[%emt 0:00:36]} 26. Rg3 {[%emt 0:01:11]} Rg8 {[%emt 0:01:44]} 27. Reg1 {[%emt 0:00:34]} Qf7 {[%emt 0:01:19]} 28. Qd2 {[%emt 0:02:21]} fxg4 {[%emt 0:01:34]} 29. Bxg4 {[%emt 0:04:11]} Ng7 {[%emt 0:00:20]} 30. Rh3 {[%emt 0:05:34]} Nf5 {[%emt 0:00:14]} 31. Bc3 {[%emt 0:00:42]} c6 {[%emt 0:00:44]} 32. Qg2 {[%emt 0:02:21]} Bc7 {[%emt 0:00:28]} 33. Be1 {[%emt 0:00:39]} Bd8 {[%emt 0:00:54]} 34. Rh5 {[%emt 0:05:56]} Nxe3 {[%emt 0:02:37]} 35. Rxh6+ {[%emt 0:00:15]} Kxh6 {[%emt 0:00:02]} 36. Qh3+ {[%emt 0:00:09]} Kg7 {[%emt 0:00:05]} 37. Be6 {[%emt 0:03:46]} Qe8 {[%emt 0:01:13]} 38. f5 {[%emt 0:03:25]} g5 {[%emt 0:00:08]} 39. Qxe3 {[%emt 0:00:28]} Qe7 {[%emt 0:01:00]} 40. Bh4 {[%emt 0:00:00]} Kf8 {[%emt 0:00:00]} 41. Bxg8 {[%emt 0:05:08]} Kxg8 {[%emt 0:08:10]} 42. Bxg5 {[%emt 0:02:01]} Qh7 {[%emt 0:08:10]} 43. Bxd8+ {[%emt 0:00:52]} Kf7 {[%emt 0:00:18]} 44. Qg5 {[%emt 0:01:43]} Ke8 {[%emt 0:00:39]} 45. Bf6 {[%emt 0:00:31]} Kf7 {[%emt 0:03:36]} 46. Be5 {[%emt 0:00:16]} 1-0

[Event "EYCC Open-U18 2019"]
[Site "Bratislava"]
[Date "2019.08.02"]
[Round "1.38"]
[White "Johannsson, Birkir Isak"]
[Black "Ciorgovean, Iustin"]
[Result "0-1"]
[ECO "A05"]
[WhiteElo "1988"]
[BlackElo "2330"]
[Annotator "NA"]
[PlyCount "84"]
[EventDate "2019.08.02"]
[EventType "swiss"]
[EventCountry "SVK"]
[SourceTitle "playchess.com"]
[Source "ChessBase"]
[SourceQuality "1"]
[TimeControl "40/5400+30:1800+30"]

1. Nf3 {[%emt 0:00:00]} Nf6 {[%emt 0:00:00]} 2. c4 {[%emt 0:00:00]} g6 {[%emt 0:00:02]} 3. Nc3 {[%emt 0:00:13]} Bg7 {[%emt 0:00:05]} 4. e4 {[%emt 0:00:06]} d6 {[%emt 0:00:10]} 5. d4 {[%emt 0:00:09]} O-O {[%emt 0:00:11]} 6. h3 {[%emt 0:01:06]} Na6 {[%emt 0:01:35]} 7. Bg5 {[%emt 0:00:16]} Qe8 {[%emt 0:04:13]} 8. a3 {[%emt 0:01:22]} e5 {[%emt 0:08:36]} 9. dxe5 {[%emt 0:00:32]} dxe5 {[%emt 0:00:07]} 10. b4 {[%emt 0:00:04]} c6 {[%emt 0:06:12]} 11. Qd6 {[%emt 0:04:57]} Be6 {[%emt 0:02:02]} 12. Rd1 {[%emt 0:00:36]} Rd8 {[%emt 0:02:10]} 13. Qxd8 {[%emt 0:00:11]} Qxd8 {[%emt 0:00:04]} 14. Rxd8 {[%emt 0:00:09]} Rxd8 {[%emt 0:00:03]} 15. Be2 {[%emt 0:00:16]} Ra8 {[%emt 0:06:59]} 16. O-O {[%emt 0:06:43]} Nd7 {[%emt 0:03:28]} 17. Be3 {[%emt 0:06:08]} f6 {[%emt 0:00:10]} 18. Nd2 {[%emt 0:02:05]} Bf8 {[%emt 0:04:46]} 19. Nb3 {[%emt 0:03:56]} b6 {[%emt 0:08:13]} 20. Rb1 {[%emt 0:12:50]} Nc7 {[%emt 0:08:21]} 21. Kf1 {[%emt 0:12:15]} Ne8 {[%emt 0:09:46]} 22. Nd2 {[%emt 0:01:51]} h5 {[%emt 0:03:54]} 23. a4 {[%emt 0:04:02]} a5 {[%emt 0:03:19]} 24. b5 {[%emt 0:01:03]} c5 {[%emt 0:03:38]} 25. Nd5 {[%emt 0:06:31]} Kh7 {[%emt 0:00:57]} 26. Ke1 {[%emt 0:01:44]} Bh6 {[%emt 0:01:31]} 27. Nf1 {[%emt 0:04:00]} Bxd5 {[%emt 0:01:57]} 28. cxd5 {[%emt 0:00:19]} Nd6 {[%emt 0:00:33]} 29. Bd3 {[%emt 0:01:45]} Rf8 {[%emt 0:06:24]} 30. g4 {[%emt 0:01:07]} hxg4 {[%emt 0:01:20]} 31. hxg4 {[%emt 0:00:11]} Rd8 {[%emt 0:02:01]} 32. Ke2 {[%emt 0:00:58]} Nf8 {[%emt 0:00:53]} 33. Ng3 {[%emt 0:01:10]} Bxe3 {[%emt 0:00:09]} 34. fxe3 {[%emt 0:01:08]} Kg7 {[%emt 0:00:13]} 35. g5 {[%emt 0:03:05]} fxg5 {[%emt 0:00:48]} 36. Rg1 {[%emt 0:01:52]} Nd7 {[%emt 0:01:29]} 37. Nh1 {[%emt 0:00:38]} Nf6 {[%emt 0:02:16]} 38. Rxg5 {[%emt 0:00:55]} Ndxe4 {[%emt 0:00:42]} 39. Rxe5 {[%emt 0:04:06]} Nc3+ {[%emt 0:00:18]} 40. Kf3 {[%emt 0:00:00]} Rxd5 {[%emt 0:00:00]} 41. Re7+ {[%emt 0:01:40]} Kf8 {[%emt 0:05:01]} 42. Re6 {[%emt 0:00:17]} Kf7 {[%emt 0:00:25]} 0-1